fUSD/lending_fUSD_20240823
["ID","MTS","AMOUNT","RATE_DAILY","PERIOD"]
[335662538,1724405714618,333.0,0.0001788,120]
[335662539,1724405715129,956.0,0.0001786,120]
[335662540,1724405715191,333.0,0.0001787,120]
[335662541,1724405715666,333.0,0.0001786,120]
[335662542,1724405715713,956.0,0.0001788,120]
[335662543,1724405716157,333.0,0.0001788,120]
[335662544,1724405716220,956.0,0.0001787,120]
[335662545,1724405716584,333.0,0.0001787,120]
[335662546,1724405716633,956.0,0.0001786,120]
[335662547,1724405717046,333.0,0.0001788,120]
[335662548,1724405717095,956.0,0.0001788,120]
[335662549,1724405717503,334.02,0.0001787,120]
[335662550,1724405717613,956.0,0.0001787,120]
[335662551,1724405718066,956.0,0.0001788,120]
[335662552,1724405718904,965.01,0.0001787,120]
[335662553,1724405808855,500.0,0.00024932,120]
[335662554,1724405817018,331.0,0.00027,120]
[335662555,1724405856062,208.92,9.985e-05,2]
[335662556,1724405856304,259.46017737,0.00024499,60]
[335662557,1724405873135,155.0,0.00024499,60]
[335662558,1724405902611,544.06,9.975e-05,2]
[335662559,1724405916381,200.0,0.00025551,120]
[335662560,1724405954315,259.46017737,0.00024499,60]
[335662561,1724405955142,155.0,0.00024499,60]
[335662566,1724405975434,228.82138518,0.00027,120]
[335662567,1724406009195,1050.0,0.0001,2]
[335662568,1724406020487,247.89,8.219e-05,2]
[335662569,1724406037342,155.0,0.00024499,60]
[335662571,1724406089352,155.0,9.962e-05,60]
[335662572,1724406193246,500.0,0.00025055,120]
[335662573,1724406193627,500.0,0.00025543,120]
[335662574,1724406193998,500.0,0.00026031,120]
[335662575,1724406194485,500.0,0.0002652,120]
[335662576,1724406194970,500.0,0.00026999,120]
[335662577,1724406212071,1000.0,0.00026849,120]
[335662578,1724406212448,1000.0,0.00026849,120]
[335662579,1724406216882,155.0,0.00024499,60]
[335662580,1724406232359,331.46544404,0.00027,120]
[335662581,1724406251427,500.0,0.00025145,120]
[335662582,1724406251832,500.0,0.00025963,120]
[335662583,1724406252191,500.0,0.0002678,120]
[335662584,1724406267717,500.0,0.00024932,120]
[335662585,1724406290497,157494.66395254,0.0001,2]
[335662586,1724406290524,352505.33604746,0.0001,2]
[335662587,1724406302131,155.0,0.00024499,60]
[335662588,1724406311652,200.0,0.00026813,120]
[335662592,1724406383810,300.0,0.00027,120]
[335662593,1724406400865,155.0,0.00024499,60]
[335662601,1724406493886,155.0,0.00024499,60]
[335662634,1724406557432,1000.0,9.949e-05,2]
[335662638,1724406570232,235.49,8.219e-05,2]
[335662646,1724406594876,155.0,0.00024499,60]
[335662651,1724406606827,235.60557884,9.962e-05,2]
[335662652,1724406610871,155.0,0.00024499,60]
[335662654,1724406626909,212.71033182,9.962e-05,2]
[335662679,1724406632466,-235.49,0.00010474,2]
[335662680,1724406632476,-407.76264237,0.000107,2]
[335662681,1724406632492,-592.23735763,0.000107,2]
[335662682,1724406632502,-409.31277052,0.0001088,2]
[335662683,1724406632514,-1007.07587274,0.0001088,2]
[335662684,1724406632525,-247.05865674,0.0001088,2]
[335662685,1724406632535,-5501.3815,0.00010885,2]
[335662686,1724406632544,-2000.0,0.000109,2]
[335662687,1724406632554,-271.39748942,0.0001091,2]
[335662688,1724406632595,-28.60251058,0.0001091,2]
[335662689,1724406632604,-300.0,0.0001091,2]
[335662690,1724406632613,-113.33603421,0.00010911,2]
[335662691,1724406632625,-386.66396579,0.00010911,2]
[335662692,1724406632634,-63.33603421,0.00010911,2]
[335662693,1724406632651,-436.66396579,0.00010911,2]
[335662694,1724406632661,-500.0,0.00010911,2]
[335662695,1724406632674,-500.0,0.00010911,2]
[335662696,1724406632684,-500.0,0.00010911,2]
[335662697,1724406632693,-500.0,0.00010912,2]
[335662698,1724406632703,-500.0,0.00010912,2]
[335662699,1724406632713,-500.0,0.00010912,2]
[335662700,1724406632723,-500.0,0.00010912,2]
[335662701,1724406632733,-500.0,0.00010912,2]
[335662702,1724406632743,-500.0,0.00010912,2]
[335662703,1724406632755,-500.0,0.00010912,2]
[335662704,1724406632764,-500.0,0.00010912,2]
[335662706,1724406632773,-500.0,0.00010912,2]
[335662708,1724406632782,-500.0,0.00010912,2]
[335662710,1724406632792,-500.0,0.00010912,2]
[335662712,1724406632802,-500.0,0.00010912,2]
[335662714,1724406632812,-500.0,0.00010912,2]
[335662716,1724406632822,-500.0,0.00010912,2]
[335662718,1724406632832,-10767.82255403,0.00010957,2]
[335662720,1724406632842,-698.51,0.00010958,2]
[335662722,1724406632851,-846.2,0.00010958,2]
[335662724,1724406632860,-500.0,0.00010958,2]
[335662726,1724406632870,-500.0,0.00010958,2]
[335662728,1724406632879,-500.0,0.00010958,2]
[335662730,1724406632889,-500.0,0.00010958,2]
[335662733,1724406632899,-2281.48,0.00010958,2]
[335662736,1724406632908,-1825.11,0.00010958,2]
[335662738,1724406632918,-610.49,0.00010958,2]
[335662740,1724406632927,-501.15437438,0.00010958,2]
[335662742,1724406632937,-500.0,0.00010958,2]
[335662743,1724406632946,-1494.24,0.00010958,2]
[335662744,1724406632956,-500.0,0.00010958,2]
[335662745,1724406632967,-500.0,0.00010958,2]
[335662746,1724406632977,-791.77,0.00010958,2]
[335662747,1724406632986,-1135.61,0.00010958,2]
[335662748,1724406632996,-500.0,0.00010958,2]
[335662749,1724406633005,-518.51059925,0.00010958,2]
[335662750,1724406633015,-572.42,0.00010958,2]
[335662751,1724406633024,-500.0,0.00010958,2]
[335662752,1724406633034,-500.0,0.00010958,2]
[335662753,1724406633044,-1618.16,0.00010958,2]
[335662754,1724406633053,-500.0,0.00010958,2]
[335662755,1724406633062,-822.38,0.00010958,2]
[335662756,1724406633072,-500.0,0.00010958,2]
[335662757,1724406633082,-500.0,0.00010958,2]
[335662758,1724406633091,-4798.83,0.00010958,2]
[335662759,1724406633101,-3362.04,0.00010958,2]
[335662760,1724406633111,-500.0,0.00010958,2]
[335662761,1724406633121,-500.0,0.00010958,2]
[335662762,1724406633130,-701.57,0.00010958,2]
[335662763,1724406633140,-500.0,0.00010958,2]
[335662764,1724406633150,-500.0,0.00010958,2]
[335662765,1724406633160,-3.43329008,0.00010958,2]
[335662766,1724406633172,-496.56670992,0.00010958,2]
[335662767,1724406633182,-500.0,0.00010958,2]
[335662768,1724406633201,-500.0,0.00010958,2]
[335662769,1724406633211,-500.0,0.00010958,2]
[335662770,1724406633221,-981.06562927,0.00010958,2]
[335662771,1724406633239,-791.24822385,0.00010958,2]
[335662774,1724406638481,-254.08458239,0.00010958,2]
[335662775,1724406638623,-90.85156449,0.00010958,2]
[335662776,1724406638633,-500.17,0.00010958,2]
[335662777,1724406638642,-535.02296522,0.00010958,2]
[335662778,1724406638651,-768.97,0.00010958,2]
[335662779,1724406638661,-500.0,0.00010958,2]
[335662780,1724406638671,-500.0,0.00010958,2]
[335662781,1724406638685,-950.79,0.00010958,2]
[335662782,1724406638695,-240.73107723,0.00010958,2]
[335662952,1724406640550,-2456.28892277,0.00010958,2]
[335662953,1724406640560,-975.23,0.00010958,2]
[335662954,1724406640570,-500.0,0.00010958,2]
[335662955,1724406640579,-500.0,0.00010958,2]
[335662956,1724406640589,-174.05,0.00010958,2]
[335662957,1724406640598,-957.65,0.00010958,2]
[335662958,1724406640607,-867.66,0.00010958,2]
[335662959,1724406640617,-500.0,0.00010958,2]
[335662960,1724406640627,-590.8,0.00010958,2]
[335662961,1724406640636,-500.0,0.00010958,2]
[335662962,1724406640646,-500.0,0.00010958,2]
[335662963,1724406640657,-660.27,0.00010958,2]
[335662964,1724406640667,-4204.34,0.00010958,2]
[335662965,1724406640680,-2120.38,0.00010958,2]
[335662966,1724406640690,-500.0,0.00010958,2]
[335662967,1724406640702,-500.0,0.00010958,2]
[335662968,1724406640713,-4981.21,0.00010958,2]
[335662969,1724406640723,-716.37,0.00010958,2]
[335662971,1724406640733,-500.0,0.00010958,2]
[335662973,1724406640743,-1040.96,0.00010958,2]
[335662975,1724406640754,-4286.48,0.00010958,2]
[335662977,1724406640764,-248.49323807,0.00010958,2]
[335662979,1724406640775,-1142.04,0.00010958,2]
[335662982,1724406640785,-1152.68,0.00010958,2]
[335662984,1724406640795,-920.87,0.00010958,2]
[335662986,1724406640805,-795.89,0.00010958,2]
[335662987,1724406640815,-500.0,0.00010958,2]
[335662989,1724406640824,-380.22908947,0.00010958,2]
[335662991,1724406640834,-1170.17,0.00010958,2]
[335662994,1724406640844,-917.98,0.00010958,2]
[335662995,1724406640853,-1327.69,0.00010958,2]
[335662997,1724406640863,-1078.31,0.00010958,2]
[335662999,1724406640873,-2940.88,0.00010958,2]
[335663001,1724406640883,-500.0,0.00010958,2]
[335663003,1724406640892,-1059.21,0.00010958,2]
[335663005,1724406640902,-894.74,0.00010958,2]
[335663007,1724406640911,-2666.26,0.00010958,2]
[335663008,1724406640920,-1063.66,0.00010958,2]
[335663009,1724406640930,-695.3,0.00010958,2]
[335663010,1724406640941,-500.0,0.00010958,2]
[335663011,1724406640950,-1209.21,0.00010958,2]
[335663012,1724406640960,-848.28,0.00010958,2]
[335663013,1724406640969,-15999.6,0.00010958,2]
[335663014,1724406640978,-500.0,0.00010958,2]
[335663015,1724406640988,-500.0,0.00010958,2]
[335663016,1724406640998,-5000.0,0.00010958,2]
[335663017,1724406641007,-682.13,0.00010958,2]
[335663018,1724406641017,-500.0,0.00010958,2]
[335663019,1724406641026,-500.0,0.00010959,2]
[335663020,1724406641036,-500.0,0.00010959,2]
[335663021,1724406641046,-200.0,0.00010959,2]
[335663022,1724406641057,-200.0,0.00010959,2]
[335663023,1724406641067,-200.0,0.00010959,2]
[335663024,1724406641076,-200.0,0.00010959,2]
[335663025,1724406641086,-200.0,0.00010959,2]
[335663026,1724406641096,-200.0,0.00010959,2]
[335663027,1724406641105,-200.0,0.00010959,2]
[335663028,1724406641115,-200.0,0.00010959,2]
[335663029,1724406641124,-200.0,0.00010959,2]
[335663030,1724406641133,-200.0,0.00010959,2]
[335663031,1724406641142,-343.12767911,0.00010973,2]
[335663032,1724406641151,-201.15271204,0.00010973,2]
[335663033,1724406641161,-200.0,0.00010973,2]
[335663034,1724406641170,-151.07,0.00010976,2]
[335663035,1724406641180,-151.07,0.00010978,2]
[335663036,1724406641190,-2905.53992152,0.00010984,2]
[335663037,1724406641200,-22903.43604009,0.00010985,2]
[335663038,1724406641209,-907.92,0.00010986,2]
[335663039,1724406641218,-500.0,0.00010986,2]
[335663040,1724406641227,-767.55,0.00010986,2]
[335663041,1724406641236,-892.25,0.00010986,2]
[335663042,1724406641246,-637.47,0.00010986,2]
[335663043,1724406641255,-688.56,0.00010986,2]
[335663044,1724406641264,-500.0,0.00010986,2]
[335663045,1724406641273,-891.21,0.00010986,2]
[335663046,1724406641283,-500.0,0.00010986,2]
[335663047,1724406641292,-11311.29,0.00010986,2]
[335663048,1724406641302,-530.23,0.00010986,2]
[335663049,1724406641312,-500.0,0.00010986,2]
[335663050,1724406641321,-500.0,0.00010986,2]
[335663051,1724406641331,-931.71,0.00010986,2]
[335663052,1724406641340,-931.71,0.00010986,2]
[335663053,1724406641350,-730.46,0.00010986,2]
[335663054,1724406641360,-1061.25,0.00010986,2]
[335663055,1724406641369,-1061.25,0.00010986,2]
[335663056,1724406641379,-1654.87,0.00010986,2]
[335663057,1724406641389,-1654.87,0.00010986,2]
[335663058,1724406641399,-500.0,0.00010986,2]
[335663059,1724406641409,-500.0,0.00010986,2]
[335663060,1724406641418,-1031.51,0.00010986,2]
[335663061,1724406641427,-500.0,0.00010986,2]
[335663062,1724406641437,-335.96,0.00010986,2]
[335663063,1724406641447,-2238.14,0.00010986,2]
[335663064,1724406641457,-2238.14,0.00010986,2]
[335663065,1724406641466,-763.46,0.00010986,2]
[335663066,1724406641476,-1079.11,0.00010986,2]
[335663067,1724406641487,-1079.11,0.00010986,2]
[335663068,1724406641497,-792.52,0.00010986,2]
[335663069,1724406641509,-792.52,0.00010986,2]
[335663070,1724406641518,-500.0,0.00010986,2]
[335663071,1724406641528,-500.0,0.00010986,2]
[335663072,1724406641538,-1127.29,0.00010986,2]
[335663073,1724406641548,-1127.29,0.00010986,2]
[335663074,1724406641558,-1360.02,0.00010986,2]
[335663075,1724406641567,-1360.02,0.00010986,2]
[335663076,1724406641576,-3094.28,0.00010986,2]
[335663077,1724406641585,-1592.41,0.00010986,2]
[335663078,1724406641595,-1592.41,0.00010986,2]
[335663079,1724406641605,-832.4,0.00010986,2]
[335663080,1724406641615,-500.0,0.00010986,2]
[335663081,1724406641624,-500.0,0.00010986,2]
[335663082,1724406641633,-500.0,0.00010986,2]
[335663083,1724406641643,-500.0,0.00010986,2]
[335663084,1724406641654,-500.0,0.00010986,2]
[335663085,1724406641664,-730.94,0.00010986,2]
[335663086,1724406641673,-500.0,0.00010986,2]
[335663087,1724406641688,-500.0,0.00010986,2]
[335663088,1724406641698,-875.98,0.00010986,2]
[335663089,1724406641707,-500.0,0.00010986,2]
[335663090,1724406641717,-500.0,0.00010986,2]
[335663091,1724406641727,-1141.36,0.00010986,2]
[335663092,1724406641736,-1141.36,0.00010986,2]
[335663093,1724406641746,-219.96239897,0.00010986,2]
[335663094,1724406641757,-500.0,0.00010986,2]
[335663095,1724406641767,-500.0,0.00010986,2]
[335663096,1724406641776,-744.46,0.00010986,2]
[335663097,1724406641786,-1261.79,0.00010986,2]
[335663098,1724406641796,-1261.79,0.00010986,2]
[335663099,1724406641805,-2796.51,0.00010986,2]
[335663100,1724406641815,-2796.51,0.00010986,2]
[335663101,1724406641824,-500.0,0.00010986,2]
[335663102,1724406641834,-500.0,0.00010986,2]
[335663103,1724406641843,-500.0,0.00010986,2]
[335663104,1724406641852,-500.0,0.00010986,2]
[335663105,1724406641862,-500.0,0.00010986,2]
[335663106,1724406641871,-500.0,0.00010986,2]
[335663107,1724406641881,-687.52,0.00010986,2]
[335663108,1724406641890,-500.0,0.00010986,2]
[335663109,1724406641900,-500.0,0.00010986,2]
[335663110,1724406641909,-100000.0,0.00010986,2]
[335663111,1724406641918,-500.0,0.00010986,2]
[335663112,1724406641928,-91817.6739299,0.00010986,2]
[335663113,1724406641938,-500.0,0.00010986,2]
[335663114,1724406641948,-1718.86,0.00010986,2]
[335663115,1724406641957,-1718.86,0.00010986,2]
[335663116,1724406641967,-500.0,0.00010986,2]
[335663117,1724406641976,-714.42,0.00010986,2]
[335663118,1724406641985,-714.42,0.00010986,2]
[335663119,1724406641995,-500.0,0.00010986,2]
[335663120,1724406642005,-500.0,0.00010986,2]
[335663121,1724406642014,-709.53,0.00010986,2]
[335663122,1724406642024,-709.53,0.00010986,2]
[335663123,1724406642033,-22704.512377,0.00010986,2]
[335663124,1724406642042,-22704.512377,0.00010986,2]
[335663125,1724406642052,-2237.24,0.00010986,2]
[335663126,1724406642063,-2237.24,0.00010986,2]
[335663127,1724406642073,-500.0,0.00010986,2]
[335663128,1724406642082,-500.0,0.00010986,2]
[335663129,1724406642092,-1604.16,0.00010986,2]
[335663130,1724406642102,-500.0,0.00010986,2]
[335663131,1724406642112,-1604.16,0.00010986,2]
[335663132,1724406642121,-512.58,0.00010986,2]
[335663133,1724406642130,-46507.0,0.00010986,2]
[335663134,1724406642140,-9433.0,0.00010986,2]
[335663135,1724406642149,-71719.0,0.00010986,2]
[335663137,1724406642158,-1353.91,0.00010987,2]
[335663139,1724406642168,-746.2,0.00010987,2]
[335663141,1724406642177,-730.13,0.00010987,2]
[335663143,1724406642186,-704.18,0.00010987,2]
[335663145,1724406642197,-639.38,0.00010987,2]
[335663147,1724406642206,-666.85,0.00010987,2]
[335663149,1724406642215,-830.54,0.00010987,2]
[335663151,1724406642225,-805.9,0.00010987,2]
[335663153,1724406642235,-1180.22,0.00010987,2]
[335663155,1724406642245,-784.32,0.00010987,2]
[335663157,1724406642254,-718.26,0.00010987,2]
[335663159,1724406642264,-940.93,0.00010987,2]
[335663177,1724406642438,-500.0,0.00010987,2]
[335663180,1724406642449,-500.0,0.00010987,2]
[335663181,1724406642460,-837.68,0.00010987,2]
[335663183,1724406642470,-907.92,0.00010987,2]
[335663185,1724406642480,-907.92,0.00010987,2]
[335663186,1724406642489,-907.92,0.00010987,2]
[335663187,1724406642499,-848.38,0.00010987,2]
[335663188,1724406642509,-500.0,0.00010987,2]
[335663189,1724406642518,-500.0,0.00010987,2]
[335663190,1724406642529,-500.0,0.00010987,2]
[335663191,1724406642538,-19418.54,0.00010987,2]
[335663192,1724406642548,-19418.54,0.00010987,2]
[335663193,1724406642557,-767.55,0.00010987,2]
[335663194,1724406642567,-767.55,0.00010987,2]
[335663195,1724406642577,-767.55,0.00010987,2]
[335663196,1724406642587,-1857.33,0.00010987,2]
[335663197,1724406642596,-1857.33,0.00010987,2]
[335663198,1724406642606,-892.25,0.00010987,2]
[335663199,1724406642616,-892.25,0.00010987,2]
[335663200,1724406642626,-892.25,0.00010987,2]
[335663201,1724406642635,-500.0,0.00010987,2]
[335663202,1724406642644,-637.47,0.00010987,2]
[335663203,1724406642653,-637.47,0.00010987,2]
[335663204,1724406642663,-637.47,0.00010987,2]
[335663205,1724406642672,-500.0,0.00010987,2]
[335663206,1724406642685,-688.56,0.00010987,2]
[335663207,1724406642696,-688.56,0.00010987,2]
[335663208,1724406642705,-688.56,0.00010987,2]
[335663209,1724406642715,-658.18,0.00010987,2]
[335663210,1724406642727,-500.0,0.00010987,2]
[335663211,1724406642737,-500.0,0.00010987,2]
[335663212,1724406642746,-500.0,0.00010987,2]
[335663213,1724406642758,-2081.86,0.00010987,2]
[335663214,1724406642768,-2081.86,0.00010987,2]
[335663215,1724406642777,-891.21,0.00010987,2]
[335663216,1724406642786,-891.21,0.00010987,2]
[335663217,1724406642795,-891.21,0.00010987,2]
[335663218,1724406642804,-500.0,0.00010987,2]
[335663219,1724406642813,-500.0,0.00010987,2]
[335663220,1724406642822,-837.79,0.00010987,2]
[335663221,1724406642831,-500.0,0.00010987,2]
[335663222,1724406642841,-500.0,0.00010987,2]
[335663223,1724406642850,-500.0,0.00010987,2]
[335663224,1724406642860,-1581.21,0.00010987,2]
[335663225,1724406642869,-1581.21,0.00010987,2]
[335663226,1724406642879,-11311.29,0.00010987,2]
[335663227,1724406642888,-11311.29,0.00010987,2]
[335663228,1724406642898,-11311.29,0.00010987,2]
[335663229,1724406642907,-1054.49,0.00010987,2]
[335663230,1724406642916,-1054.49,0.00010987,2]
[335663231,1724406642925,-530.23,0.00010987,2]
[335663232,1724406642934,-530.23,0.00010987,2]
[335663233,1724406642944,-530.23,0.00010987,2]
[335663234,1724406642962,-500.0,0.00010987,2]
[335663235,1724406642971,-347.23,0.00010987,2]
[335663236,1724406642981,-931.71,0.00010987,2]
[335663237,1724406642991,-730.46,0.00010987,2]
[335663238,1724406643000,-1061.25,0.00010987,2]
[335663239,1724406643009,-730.46,0.00010987,2]
[335663240,1724406643019,-931.71,0.00010987,2]
[335663241,1724406643028,-1061.25,0.00010987,2]
[335663242,1724406643036,-730.46,0.00010987,2]
[335663243,1724406643045,-1654.87,0.00010987,2]
[335663244,1724406643055,-1654.87,0.00010987,2]
[335663245,1724406643064,-500.0,0.00010987,2]
[335663246,1724406643073,-500.0,0.00010987,2]
[335663247,1724406643083,-1031.51,0.00010987,2]
[335663248,1724406643092,-1031.51,0.00010987,2]
[335663249,1724406643101,-1031.51,0.00010987,2]
[335663250,1724406643111,-249.58354714,0.00010987,2]
[335663251,1724406643120,-500.0,0.00010987,2]
[335663252,1724406643130,-2238.14,0.00010987,2]
[335663253,1724406643139,-2238.14,0.00010987,2]
[335663254,1724406643148,-763.46,0.00010987,2]
[335663256,1724406643157,-763.46,0.00010987,2]
[335663258,1724406643167,-763.46,0.00010987,2]
[335663260,1724406643177,-500.0,0.00010987,2]
[335663262,1724406643187,-500.0,0.00010987,2]
[335663263,1724406643196,-1079.11,0.00010987,2]
[335663265,1724406643205,-1079.11,0.00010987,2]
[335663267,1724406643215,-792.52,0.00010987,2]
[335663269,1724406643224,-792.52,0.00010987,2]
[335663270,1724406643234,-500.0,0.00010987,2]
[335663271,1724406643243,-235.15471339,0.00010987,2]
[335663272,1724406643252,-1127.29,0.00010987,2]
[335663273,1724406643262,-1127.29,0.00010987,2]
[335663274,1724406643272,-674.76,0.00010987,2]
[335663275,1724406643281,-1360.02,0.00010987,2]
[335663276,1724406643291,-1360.02,0.00010987,2]
[335663277,1724406643300,-3094.28,0.00010987,2]
[335663278,1724406643309,-3094.28,0.00010987,2]
[335663279,1724406643319,-3094.28,0.00010987,2]
[335663280,1724406643328,-513.55,0.00010987,2]
[335663281,1724406643338,-1592.41,0.00010987,2]
[335663282,1724406643346,-513.55,0.00010987,2]
[335663283,1724406643356,-1592.41,0.00010987,2]
[335663284,1724406643365,-832.4,0.00010987,2]
[335663285,1724406643374,-832.4,0.00010987,2]
[335663286,1724406643384,-832.4,0.00010987,2]
[335663287,1724406643393,-500.0,0.00010987,2]
[335663288,1724406643402,-500.0,0.00010987,2]
[335663289,1724406643412,-500.0,0.00010987,2]
[335663290,1724406643421,-236.92640114,0.00010987,2]
[335663291,1724406643431,-500.0,0.00010987,2]
[335663292,1724406643440,-500.0,0.00010987,2]
[335663293,1724406643457,-730.94,0.00010987,2]
[335663294,1724406643467,-730.94,0.00010987,2]
[335663295,1724406643476,-730.94,0.00010987,2]
[335663296,1724406643485,-500.0,0.00010987,2]
[335663297,1724406643495,-500.0,0.00010987,2]
[335663298,1724406643504,-875.98,0.00010987,2]
[335663299,1724406643513,-875.98,0.00010987,2]
[335663300,1724406643523,-875.98,0.00010987,2]
[335663301,1724406643532,-500.0,0.00010987,2]
[335663302,1724406643541,-500.0,0.00010987,2]
[335663303,1724406643550,-1141.36,0.00010987,2]
[335663305,1724406643560,-1141.36,0.00010987,2]
[335663306,1724406643570,-500.0,0.00010987,2]
[335663308,1724406643579,-500.0,0.00010987,2]
[335663310,1724406643589,-500.0,0.00010987,2]
[335663311,1724406643598,-500.0,0.00010987,2]
[335663313,1724406643607,-744.46,0.00010987,2]
[335663314,1724406643617,-744.46,0.00010987,2]
[335663315,1724406643626,-744.46,0.00010987,2]
[335663316,1724406643635,-500.0,0.00010987,2]
[335663317,1724406643645,-500.0,0.00010987,2]
[335663318,1724406643654,-1261.79,0.00010987,2]
[335663319,1724406643663,-1261.79,0.00010987,2]
[335663320,1724406643674,-1561.82,0.00010987,2]
[335663321,1724406643688,-2796.51,0.00010987,2]
[335663322,1724406643699,-2796.51,0.00010987,2]
[335663323,1724406643710,-500.0,0.00010987,2]
[335663324,1724406643719,-500.0,0.00010987,2]
[335663325,1724406643730,-500.0,0.00010987,2]
[335663326,1724406643739,-661.23,0.00010987,2]
[335663328,1724406643749,-661.23,0.00010987,2]
[335663330,1724406643760,-500.0,0.00010987,2]
[335663333,1724406643771,-500.0,0.00010987,2]
[335663335,1724406643780,-500.0,0.00010987,2]
[335663336,1724406643790,-500.0,0.00010987,2]
[335663337,1724406643799,-500.0,0.00010987,2]
[335663338,1724406643808,-500.0,0.00010987,2]
[335663339,1724406643818,-500.0,0.00010987,2]
[335663340,1724406643828,-500.0,0.00010987,2]
[335663341,1724406643837,-687.52,0.00010987,2]
[335663342,1724406643847,-500.0,0.00010987,2]
[335663343,1724406643856,-687.52,0.00010987,2]
[335663344,1724406643865,-500.0,0.00010987,2]
[335663346,1724406643874,-687.52,0.00010987,2]
[335663348,1724406643884,-500.0,0.00010987,2]
[335663350,1724406643893,-500.0,0.00010987,2]
[335663351,1724406643903,-500.0,0.00010987,2]
[335663352,1724406643912,-500.0,0.00010987,2]
[335663353,1724406643922,-500.0,0.00010987,2]
[335663354,1724406643931,-1718.86,0.00010987,2]
[335663355,1724406643941,-500.0,0.00010987,2]
[335663356,1724406643951,-1718.86,0.00010987,2]
[335663357,1724406643960,-500.0,0.00010987,2]
[335663358,1724406643970,-1718.86,0.00010987,2]
[335663359,1724406643979,-500.0,0.00010987,2]
[335663360,1724406643989,-4145.58,0.00010987,2]
[335663361,1724406643999,-4145.58,0.00010987,2]
[335663362,1724406644011,-714.42,0.00010987,2]
[335663363,1724406644021,-714.42,0.00010987,2]
[335663364,1724406644030,-792.92,0.00010987,2]
[335663365,1724406644039,-500.0,0.00010987,2]
[335663366,1724406644049,-500.0,0.00010987,2]
[335663367,1724406644059,-365.43,0.00010987,2]
[335663368,1724406644068,-1365.29,0.00010987,2]
[335663369,1724406644078,-1365.29,0.00010987,2]
[335663370,1724406644087,-709.53,0.00010987,2]
[335663371,1724406644098,-709.53,0.00010987,2]
[335663372,1724406644108,-22704.512377,0.00010987,2]
[335663373,1724406644117,-22704.512377,0.00010987,2]
[335663374,1724406644127,-2237.24,0.00010987,2]
[335663375,1724406644138,-2237.24,0.00010987,2]
[335663376,1724406644148,-2237.24,0.00010987,2]
[335663377,1724406644159,-958.7,0.00010987,2]
[335663378,1724406644169,-958.7,0.00010987,2]
[335663379,1724406644178,-500.0,0.00010987,2]
[335663380,1724406644189,-500.0,0.00010987,2]
[335663381,1724406644199,-500.0,0.00010987,2]
[335663382,1724406644208,-500.0,0.00010987,2]
[335663383,1724406644218,-1604.16,0.00010987,2]
[335663384,1724406644228,-1604.16,0.00010987,2]
[335663385,1724406644239,-500.0,0.00010987,2]